fUST/lending_fUST_20250113
["ID","MTS","AMOUNT","RATE_DAILY","PERIOD"]
[348746275,1736767770864,-500.0,0.00019178,2]
[348746276,1736767770886,-154.68,0.00019178,2]
[348746277,1736767770909,-321.277,0.00019374,2]
[348746278,1736767770932,-500.0,0.00019452,3]
[348746279,1736767770954,-604.96,0.00019452,3]
[348746280,1736767770978,-500.0,0.00019452,3]
[348746281,1736767771003,-500.0,0.00019452,3]
[348746282,1736767771027,-500.0,0.00019452,3]
[348746283,1736767771050,-500.0,0.00019452,3]
[348746284,1736767771072,-500.0,0.00019452,3]
[348746285,1736767771094,-500.0,0.00019452,3]
[348746286,1736767771116,-500.0,0.00019452,3]
[348746287,1736767771139,-500.0,0.00019452,3]
[348746288,1736767771162,-504.38980566,0.00019452,3]
[348746289,1736767771184,-503.41745455,0.00019452,3]
[348746290,1736767771206,-500.0,0.00019452,3]
[348746291,1736767771229,-500.0,0.00019452,3]
[348746292,1736767771253,-500.0,0.00019452,3]
[348746293,1736767771276,-500.0,0.00019452,3]
[348746294,1736767771298,-573.54837292,0.00019452,3]
[348746295,1736767771322,-500.0,0.00019452,3]
[348746296,1736767771344,-500.0,0.00019452,3]
[348746297,1736767771366,-500.0,0.00019452,3]
[348746298,1736767771388,-500.0,0.00019452,3]
[348746299,1736767771411,-500.0,0.00019452,3]
[348746300,1736767771436,-500.0,0.00019452,3]
[348746301,1736767771459,-500.0,0.00019452,3]
[348746302,1736767771482,-500.0,0.00019452,3]
[348746303,1736767771504,-500.0,0.00019452,3]
[348746304,1736767771531,-503.14390383,0.00019452,3]
[348746305,1736767771553,-500.0,0.00019452,3]
[348746306,1736767771591,-500.0,0.00019452,3]
[348746307,1736767771630,-500.0,0.00019452,3]
[348746308,1736767771669,-500.0,0.00019452,3]
[348746309,1736767771707,-500.0,0.00019452,3]
[348746310,1736767771747,-1037.29,0.00019452,3]
[348746311,1736767771784,-1003.69,0.00019452,2]
[348746312,1736767771822,-500.0,0.00019452,3]
[348746313,1736767771863,-500.0,0.00019452,3]
[348746314,1736767771901,-500.0,0.00019452,3]
[348746315,1736767771939,-500.0,0.00019452,3]
[348746316,1736767771976,-500.0,0.00019452,3]
[348746317,1736767772014,-500.0,0.00019452,3]
[348746318,1736767772058,-5459.94,0.00019452,3]
[348746319,1736767772099,-500.0,0.00019452,3]
[348746320,1736767772142,-500.0,0.00019452,3]
[348746321,1736767772182,-500.0,0.00019452,3]
[348746322,1736767772315,-500.0,0.00019452,3]
[348746323,1736767772361,-500.0,0.00019452,3]
[348746324,1736767772401,-500.0,0.00019452,3]
[348746325,1736767772442,-523.99,0.00019452,3]
[348746326,1736767772483,-500.0,0.00019604,3]
[348746327,1736767772522,-500.0,0.00019604,3]
[348746328,1736767772561,-500.0,0.00019604,3]
[348746329,1736767772598,-500.0,0.00019604,3]
[348746330,1736767772638,-500.0,0.00019604,3]
[348746331,1736767772677,-500.0,0.00019604,3]
[348746332,1736767772715,-500.0,0.00019687,3]
[348746333,1736767772754,-500.0,0.00019726,3]
[348746334,1736767772792,-500.0,0.00019726,3]
[348746335,1736767772831,-500.0,0.00019726,3]
[348746336,1736767772870,-500.0,0.00019726,3]
[348746337,1736767772906,-500.0,0.00019726,3]
[348746338,1736767772945,-500.0,0.00019726,3]
[348746339,1736767772982,-500.0,0.00019726,3]
[348746340,1736767773022,-500.0,0.00019726,3]
[348746341,1736767773062,-500.0,0.00019726,3]
[348746342,1736767773107,-1037.29,0.00019726,3]
[348746343,1736767773151,-1003.69,0.00019726,2]
[348746344,1736767773194,-500.0,0.00019726,3]
[348746345,1736767773239,-500.0,0.00019726,3]
[348746346,1736767773283,-310.67,0.00019726,3]
[348746347,1736767773324,-500.0,0.00019726,3]
[348746348,1736767773381,-500.0,0.00019726,3]
[348746349,1736767773429,-5459.94,0.00019726,3]
[348746350,1736767773477,-500.0,0.00019726,3]
[348746351,1736767773521,-500.0,0.00019726,3]
[348746352,1736767773566,-500.0,0.00019726,3]
[348746353,1736767773610,-500.0,0.00019726,3]
[348746354,1736767773652,-523.99,0.00019726,3]
[348746355,1736767773694,-500.0,0.00019863,9]
[348746356,1736767773739,-500.0,0.00019878,3]
[348746357,1736767773782,-500.0,0.00019878,3]
[348746358,1736767773826,-511.18957035,0.00019878,3]
[348746359,1736767773869,-500.0,0.00019878,3]
[348746360,1736767773912,-410.49630896,0.000199,2]
[348746361,1736767773955,-496.41778149,0.0002,2]
[348746444,1736767833170,-300.0,0.00019177,2]
[348746446,1736767833180,-500.0,0.00019178,2]
[348746448,1736767833190,-500.0,0.00019178,2]
[348746450,1736767833202,-500.0,0.00019178,2]
[348746451,1736767833211,-500.0,0.00019178,2]
[348746454,1736767833221,-500.0,0.00019178,2]
[348746456,1736767833231,-500.0,0.00019178,2]
[348746458,1736767833241,-500.0,0.00019178,2]
[348746460,1736767833251,-509.12611066,0.00019178,2]
[348746462,1736767833261,-500.0,0.00019452,3]
[348746464,1736767833271,-500.0,0.00019452,3]
[348746465,1736767833281,-500.0,0.00019604,3]
[348746468,1736767833291,-500.0,0.00019604,3]
[348746470,1736767833302,-500.0,0.00019726,3]
[348746472,1736767833312,-301.96221851,0.0002,2]
[348746474,1736767833322,-638.4,0.0002,3]
[348746476,1736767833332,-500.0,0.0002,3]
[348746478,1736767833342,-503.22445304,0.0002,3]
[348746480,1736767833352,-239.49079237,0.0002,3]
[348746483,1736767833362,-500.22659877,0.0002,3]
[348746485,1736767833373,-584.15577236,0.0002,3]
[348746487,1736767833383,-1003.69,0.0002,2]
[348746489,1736767833393,-1037.29,0.0002,3]
[348746491,1736767833403,-500.0,0.0002,3]
[348746493,1736767833412,-500.0,0.0002,3]
[348746495,1736767833423,-500.0,0.0002,3]
[348746497,1736767833433,-5459.94,0.0002,3]
[348746499,1736767833442,-500.0,0.0002,3]
[348746501,1736767833455,-500.0,0.0002,3]
[348746504,1736767833469,-500.0,0.0002,3]
[348746507,1736767833479,-500.0,0.0002,3]
[348746508,1736767833489,-523.99,0.0002,3]
[348746510,1736767833501,-410.49630892,0.00020038,2]
[348746512,1736767833511,-500.0,0.00020077,2]
[348746514,1736767833521,-736.29,0.00020077,3]
[348746516,1736767833531,-410.49630892,0.00020176,2]
[348746519,1736767833542,-500.0,0.00020273,3]
[348746520,1736767833552,-1003.69,0.00020273,2]
[348746523,1736767833562,-1037.29,0.00020273,3]
[348746525,1736767833571,-500.0,0.00020273,3]
[348746527,1736767833581,-500.0,0.00020273,3]
[348746529,1736767833590,-785.91426144,0.00020273,3]
[348746531,1736767833604,-4674.02573856,0.00020273,3]
[348746533,1736767833613,-500.0,0.00020273,3]
[348746535,1736767833625,-500.0,0.00020273,3]
[348746538,1736767833639,-500.0,0.00020273,3]
[348746540,1736767833653,-500.0,0.00020273,3]
[348746543,1736767833666,-523.99,0.00020273,3]
[348746545,1736767833678,-410.49630892,0.00020314,2]
[348746547,1736767833692,-500.0,0.00020351,2]
[348746549,1736767833704,-736.29,0.00020351,3]
[348746551,1736767833715,-151.04110449,0.0002044,2]
[348746554,1736767833726,-160.04355441,0.0002044,2]
[348746556,1736767833739,-227.011528,0.00020447,2]
[348746558,1736767833751,-410.49630892,0.00020452,2]
[348746560,1736767833762,-500.0,0.00020545,3]
[348746561,1736767833774,-500.0,0.00020545,3]
[348746563,1736767833786,-500.0,0.00020545,3]
[348746565,1736767833797,-500.0,0.00020545,3]
[348746567,1736767833809,-500.0,0.00020545,3]
[348746569,1736767833821,-1145.21,0.00020545,3]
[348746570,1736767833833,-500.0,0.00020545,3]
[348746571,1736767833844,-500.0,0.00020545,3]
[348746572,1736767833856,-513.41883605,0.00020546,3]
[348746573,1736767833869,-598.35242949,0.00020546,3]
[348746574,1736767833882,-500.0,0.00020547,11]
[348746575,1736767833894,-500.0,0.00020547,3]
[348746576,1736767833906,-500.0,0.00020547,3]
[348746577,1736767833917,-1003.69,0.00020547,2]
[348746578,1736767833929,-1037.29,0.00020547,3]
[348746579,1736767833940,-500.0,0.00020547,3]
[348746580,1736767833952,-305.8046154,0.00020547,3]
[348746581,1736767833963,-5459.94,0.00020547,3]
[348746582,1736767833974,-500.0,0.00020547,3]
[348746583,1736767833986,-500.0,0.00020547,3]
[348746584,1736767833998,-500.0,0.00020547,3]
[348746585,1736767834009,-523.99,0.00020547,3]
[348746586,1736767834020,-612.23418189,0.00020573,2]
[348746587,1736767834032,-410.49630892,0.0002059,2]
[348746588,1736767834044,-500.0,0.00020625,2]
[348746589,1736767834054,-736.29,0.00020625,3]
[348746590,1736767834064,-410.49630892,0.00020728,2]
[348746591,1736767834076,-500.0,0.00020819,3]
[348746592,1736767834088,-500.0,0.00020819,3]
[348746593,1736767834100,-500.0,0.00020819,3]
[348746594,1736767834111,-1145.21,0.00020819,3]
[348746595,1736767834124,-500.0,0.00020819,3]
[348746596,1736767834136,-500.0,0.00020819,3]
[348746597,1736767834148,-239.14,0.00020821,3]
[348746598,1736767834160,-1003.69,0.00020821,2]
[348746599,1736767834172,-1037.29,0.00020821,3]
[348746600,1736767834184,-500.0,0.00020821,3]
[348746601,1736767834197,-5459.94,0.00020821,3]
[348746602,1736767834211,-500.0,0.00020821,3]
[348746603,1736767834223,-500.0,0.00020821,3]
[348746604,1736767834237,-523.99,0.00020821,3]
[348746605,1736767834249,-338.53772778,0.0002086,2]
[348746606,1736767834262,-249.83676101,0.0002086,2]
[348746607,1736767834274,-410.49630892,0.00020866,2]
[348746608,1736767834286,-203.09911092,0.00020898,2]
[348746609,1736767834297,-307.18249725,0.00020898,2]
[348746610,1736767834307,-500.0,0.00020899,2]
[348746611,1736767834318,-736.29,0.00020899,3]
[348746612,1736767834329,-403.0,0.00020899,2]
[348746613,1736767834340,-1060.61811778,0.00020993,2]
[348746614,1736767834351,-1060.61811778,0.00020994,2]
[348746615,1736767834364,-1060.61811778,0.00020999,2]
[348746616,1736767834376,-3078.87651227,0.00021,2]
[348746617,1736767834389,-3155.52572583,0.00021,2]
[348746618,1736767834401,-410.49630892,0.00021003,2]
[348746619,1736767834414,-500.0,0.00021093,3]
[348746620,1736767834425,-500.0,0.00021093,2]
[348746621,1736767834435,-168.11,0.00021093,3]
[348746622,1736767834446,-500.0,0.00021093,3]
[348746623,1736767834461,-1145.21,0.00021093,3]
[348746624,1736767834474,-500.0,0.00021093,3]
[348746625,1736767834494,-500.0,0.00021093,3]
[348746626,1736767834513,-151.0,0.00021094,2]
[348746627,1736767834530,-1003.69,0.00021095,2]
[348746628,1736767834544,-709.36431657,0.00021095,3]
[348746629,1736767834567,-500.0,0.00019178,2]
[348746630,1736767834578,-327.92568343,0.00021095,3]
[348746631,1736767834588,-500.0,0.00021095,3]
[348746632,1736767834599,-5459.94,0.00021095,3]
[348746633,1736767834612,-500.0,0.00021095,3]
[348746634,1736767834623,-500.0,0.00021095,3]
[348746635,1736767834637,-523.99,0.00021095,3]
[348746636,1736767834649,-410.49630892,0.00021141,2]
[348746637,1736767834661,-500.0,0.00021173,2]
[348746638,1736767834673,-736.29,0.00021173,3]
[348746639,1736767834685,-502.58650724,0.0002123,2]
[348746640,1736767834696,-500.0,0.00021232,13]
[348746641,1736767834709,-410.49630892,0.00021279,2]
[348746642,1736767834720,-326.36,0.00021367,3]
[348746643,1736767834732,-500.0,0.00021367,3]
[348746644,1736767834744,-1145.21,0.00021367,3]
[348746645,1736767834755,-500.0,0.00021367,3]
[348746646,1736767834766,-151.0,0.00021368,2]
[348746647,1736767834778,-1003.69,0.00021369,2]
[348746648,1736767834789,-1037.29,0.00021369,3]
[348746649,1736767834800,-500.0,0.00021369,3]
[348746650,1736767834811,-5459.94,0.00021369,3]
[348746651,1736767834823,-500.0,0.00021369,3]
[348746652,1736767834835,-500.0,0.00021369,3]
[348746653,1736767834846,-523.99,0.00021369,3]
[348746654,1736767834857,-410.49630892,0.00021417,2]
[348746655,1736767834868,-546.30185579,0.00021447,2]
[348746656,1736767834880,-736.29,0.00021447,3]
[348746657,1736767834892,-410.49630892,0.00021555,2]
[348746658,1736767834903,-495.10710985,0.00021641,3]
[348746659,1736767834913,-1145.21,0.00021641,3]
[348746660,1736767834922,-52.39360806,0.00021641,3]
[348746719,1736767838889,-500.0,0.00019452,3]
[348746721,1736767838898,-447.60639194,0.00021641,3]
[348746724,1736767838908,-1003.69,0.00021643,2]
[348746726,1736767838917,-1037.29,0.00021643,3]
[348746728,1736767838926,-500.0,0.00021643,3]
[348746730,1736767838936,-5459.94,0.00021643,3]
[348746732,1736767838945,-154.50209551,0.00021643,3]
[348746734,1736767838957,-500.0,0.00021643,3]
[348746736,1736767838966,-523.99,0.00021643,3]
[348746737,1736767838975,-736.29,0.00021721,3]
[348746739,1736767838984,-151.0,0.00021831,2]
[348746741,1736767838993,-439.23931411,0.00021915,3]
[348747030,1736767841853,-705.97068589,0.00021915,3]
[348747032,1736767841863,-500.0,0.00021915,3]
[348747034,1736767841872,-500.0,0.00021917,15]
[348747036,1736767841881,-1003.69,0.00021917,2]
[348747038,1736767841890,-1037.29,0.00021917,3]
[348747040,1736767841900,-500.0,0.00021917,3]
[348747042,1736767841910,-4925.54931411,0.00021917,3]
[348747045,1736767841922,-534.39068589,0.00021917,3]
[348747047,1736767841931,-500.0,0.00021917,3]
[348747049,1736767841941,-523.99,0.00021917,3]
[348747051,1736767841950,-736.29,0.00021995,3]
[348747053,1736767841960,-158.0,0.00022,2]
[348747055,1736767841969,-40994.51664171,0.00022,7]
[348747057,1736767841979,-154.31653714,0.00022,7]
[348747059,1736767841988,-1145.21,0.00022189,3]
[348747061,1736767841997,-1003.69,0.00022191,2]
[348747063,1736767842006,-1037.29,0.00022191,3]
[348747065,1736767842015,-500.0,0.00022191,3]
[348747067,1736767842025,-5459.94,0.00022191,3]
[348747069,1736767842034,-485.11,0.00022191,3]
[348747071,1736767842044,-523.99,0.00022191,3]
[348747073,1736767842053,-736.29,0.00022269,3]
[348747075,1736767842062,-538.375,0.0002245,2]
[348747077,1736767842072,-1145.21,0.00022463,3]
[348747079,1736767842081,-187.05406239,0.00022464,2]
[348747081,1736767842090,-500.0,0.00022464,2]
[348747083,1736767842099,-178.16920657,0.00022464,2]
[348747085,1736767842109,-234.15729443,0.00022464,2]
[348747087,1736767842119,-500.0,0.00022464,2]
[348747089,1736767842128,-500.0,0.00022464,2]
[348747091,1736767842137,-1003.69,0.00022465,2]
[348747093,1736767842146,-1037.29,0.00022465,3]
[348747095,1736767842156,-500.0,0.00022465,3]
[348747097,1736767842165,-5459.94,0.00022465,3]
[348747099,1736767842174,-523.99,0.00022465,3]
[348747101,1736767842183,-32174.22972246,0.000225,5]
[348747103,1736767842193,-7356.96759518,0.000225,5]
[348747105,1736767842202,-84212.22088314,0.000225,10]
[348747464,1736767846861,-718.55,0.0002,2]
[348747466,1736767846871,-195.25,0.000225,10]
[348747467,1736767846883,-45694.00000005,0.000225,10]
[348747477,1736767898657,217.310985,0.00013973,2]
[348747479,1736768410088,150.33,0.00015052,2]
[348747496,1736768751632,206.445435,0.00013973,2]
[348747497,1736768833142,-5000.0,0.00018789,2]
[348747498,1736768833163,-707.082516,0.00018933,2]
[348747499,1736768833184,-300.0,0.00019175,2]
[348747500,1736768833205,-14349.0,0.00019177,2]
[348747501,1736768833228,-873.13,0.00019178,2]
[348747502,1736768833251,-500.0,0.00019178,2]
[348747503,1736768833277,-500.0,0.00019178,2]
[348747504,1736768833298,-500.0,0.00019178,2]
[348747505,1736768833336,-500.0,0.00019178,2]
[348747506,1736768833359,-500.0,0.00019178,2]
[348747507,1736768833382,-154.58211147,0.00019178,2]
[348747508,1736768833406,-500.0,0.00019178,2]
[348747509,1736768833429,-612.50719684,0.00019178,2]
[348747510,1736768833452,-3340.5,0.00019178,2]
[348747511,1736768833480,-500.0,0.00019178,2]
[348747512,1736768833665,-500.0,0.00019178,2]
[348747513,1736768833689,-500.0,0.00019178,2]
[348747514,1736768833712,-500.0,0.00019178,2]
[348747515,1736768833735,-500.0,0.00019178,2]
[348747516,1736768833758,-500.0,0.00019178,2]
[348747517,1736768833780,-500.0,0.00019178,2]
[348747518,1736768833806,-500.0,0.00019178,2]
[348747519,1736768833828,-500.0,0.00019178,2]
[348747520,1736768833851,-500.0,0.00019178,2]
[348747521,1736768833875,-500.0,0.00019178,2]
[348747522,1736768833901,-500.0,0.00019178,2]
[348747523,1736768833922,-500.0,0.00019178,2]
[348747524,1736768833944,-500.0,0.00019178,2]
[348747525,1736768833966,-500.0,0.00019178,2]
[348747526,1736768833989,-500.0,0.00019178,2]
[348747527,1736768834010,-500.0,0.00019178,2]
[348747528,1736768834033,-1000.0,0.00019178,7]
[348747529,1736768834055,-500.0,0.00019178,2]
[348747530,1736768834076,-500.0,0.00019178,2]
[348747531,1736768834098,-500.0,0.00019178,2]
[348747532,1736768834120,-500.0,0.00019178,2]
[348747533,1736768834142,-500.0,0.00019178,2]
[348747534,1736768834162,-500.0,0.00019178,2]
[348747535,1736768834184,-500.0,0.00019178,2]
[348747536,1736768834206,-500.0,0.00019178,2]
[348747537,1736768834228,-500.0,0.00019178,2]
[348747538,1736768834255,-1407.68,0.00019178,2]
[348747539,1736768834278,-257.021,0.00019368,2]
[348747540,1736768834302,-873.13,0.00019452,3]
[348747541,1736768834325,-194.48,0.00019452,3]
[348747542,1736768834350,-500.0,0.00019452,3]
[348747543,1736768834374,-500.0,0.00019452,3]
[348747544,1736768834396,-500.0,0.00019452,3]
[348747545,1736768834418,-3340.5,0.00019452,3]
[348747546,1736768834443,-500.0,0.00019452,3]
[348747547,1736768834466,-253.6,0.00019452,3]
[348747548,1736768834490,-174.3,0.00019452,3]
[348747549,1736768834513,-500.0,0.00019452,3]
[348747550,1736768834536,-500.0,0.00019452,3]
[348747551,1736768834559,-500.0,0.00019452,3]
[348747552,1736768834582,-500.0,0.00019452,3]
[348747553,1736768834605,-500.0,0.00019452,3]
[348747554,1736768834629,-500.0,0.00019452,3]
[348747555,1736768834651,-500.0,0.00019452,3]
[348747556,1736768834674,-202.74181808,0.00019452,7]
[348747557,1736768834696,-500.0,0.00019452,3]
[348747558,1736768834718,-500.0,0.00019452,3]
[348747559,1736768834739,-500.0,0.00019452,3]
[348747560,1736768834762,-500.0,0.00019452,3]
[348747561,1736768834787,-500.0,0.00019452,3]
[348747562,1736768834812,-500.0,0.00019452,3]
[348747563,1736768834835,-500.0,0.00019452,3]
[348747564,1736768834858,-500.0,0.00019452,3]
[348747565,1736768834884,-1407.68,0.00019452,2]
[348747566,1736768834907,-500.0,0.00019604,2]
[348747567,1736768834933,-873.13,0.00019726,3]
[348747568,1736768834962,-500.0,0.00019726,3]
[348747569,1736768834992,-500.0,0.00019726,3]
[348747570,1736768835021,-267.97,0.00019726,3]
[348747571,1736768835045,-3340.5,0.00019726,3]
[348747572,1736768835073,-500.0,0.00019726,3]
[348747573,1736768835101,-500.0,0.00019726,3]
[348747574,1736768835127,-500.0,0.00019726,3]
[348747575,1736768835153,-500.0,0.00019726,3]
[348747576,1736768835179,-500.0,0.00019726,3]
[348747577,1736768835204,-414.26,0.00019726,3]
[348747578,1736768835230,-1407.68,0.00019726,2]
[348747579,1736768835256,-500.0,0.000199,2]
[348747580,1736768835285,-501.01795844,0.000199,2]
[348747581,1736768835312,-500.0,0.000199,2]
[348747582,1736768835337,-500.0,0.00019999,3]
[348747583,1736768835364,-500.0,0.00019999,3]
[348747584,1736768835390,-873.13,0.0002,3]
[348747585,1736768835416,-646.69,0.0002,2]
[348747586,1736768835442,-300.0,0.0002,8]
[348747587,1736768835469,-500.0,0.0002,3]
[348747588,1736768835496,-500.0,0.0002,3]
[348747589,1736768835525,-3340.5,0.0002,3]
[348747590,1736768835555,-500.0,0.0002,3]
[348747591,1736768835585,-500.0,0.0002,3]
[348747592,1736768835614,-1407.68,0.0002,2]
[348747593,1736768835639,-167.18948681,0.00020173,2]
[348747594,1736768835678,-873.13,0.00020273,3]
[348747595,1736768835705,-235.36,0.00020273,3]
[348747596,1736768835734,-500.0,0.00020273,3]
[348747597,1736768835763,-500.0,0.00020273,3]
[348747598,1736768835801,-3340.5,0.00020273,3]
[348747599,1736768835832,-500.0,0.00020273,3]
[348747600,1736768835872,-500.0,0.00020273,3]
[348747601,1736768835903,-1407.68,0.00020273,2]
[348747602,1736768835929,-737.11277289,0.000204,2]
[348747603,1736768835953,-206.445435,0.00020447,2]
[348747604,1736768835981,-500.0,0.00020448,2]
[348747605,1736768836012,-500.0,0.00020545,3]
[348747606,1736768836047,-873.13,0.00020547,3]
[348747607,1736768836075,-500.0,0.00020547,3]
[348747608,1736768836102,-500.0,0.00020547,3]
[348747609,1736768836131,-3340.5,0.00020547,3]
[348747610,1736768836158,-500.0,0.00020547,3]
[348747611,1736768836189,-500.0,0.00020547,3]
[348747612,1736768836215,-1407.68,0.00020547,2]
[348747613,1736768836241,-500.0,0.00020819,3]
[348747614,1736768836267,-873.13,0.00020821,3]
[348747615,1736768836299,-500.0,0.00020821,3]
[348747616,1736768836325,-500.0,0.00020821,3]
[348747617,1736768836352,-3340.5,0.00020821,3]
[348747618,1736768836380,-500.0,0.00020821,3]
[348747619,1736768836410,-500.0,0.00020821,3]
[348747620,1736768836438,-1407.68,0.00020821,2]
[348747621,1736768836465,-287.0,0.00020897,2]
[348747622,1736768836653,-342.89348642,0.000209,2]
[348747623,1736768836678,-7210.21333705,0.00020983,2]
[348747624,1736768836700,-7210.21333705,0.0002099,2]
[348747625,1736768836723,-5589.28696895,0.00020991,2]
[348747626,1736768840126,-486.99668199,0.00019178,2]
[348747627,1736768840151,-500.0,0.00019178,2]
[348747628,1736768840174,-500.0,0.00019452,3]
[348747629,1736768840197,-588.03,0.00019726,3]
[348747630,1736768840218,-1620.9263681,0.00020991,2]
[348747631,1736768840241,-342.89348627,0.00021003,2]
[348747632,1736768840264,-500.0,0.00021093,3]
[348747633,1736768840287,-873.13,0.00021095,3]
[348747634,1736768840312,-500.0,0.00021095,3]
[348747635,1736768840335,-3340.5,0.00021095,3]
[348747636,1736768840358,-500.0,0.00021095,3]
[348747637,1736768840381,-500.0,0.00021095,3]
[348747638,1736768840405,-1407.68,0.00021095,2]
[348747639,1736768840428,-342.89348627,0.00021107,2]
[348747640,1736768840451,-342.89348627,0.0002121,2]
[348747641,1736768840473,-342.89348627,0.00021314,2]
[348747642,1736768840497,-500.0,0.00021367,3]
[348747643,1736768840519,-873.13,0.00021369,3]
[348747644,1736768840542,-500.0,0.00021369,3]
[348747645,1736768840564,-3340.5,0.00021369,3]
[348747646,1736768840586,-500.0,0.00021369,3]
[348747647,1736768840609,-500.0,0.00021369,3]
[348747648,1736768840632,-1407.68,0.00021369,2]
[348747649,1736768840653,-1200.0,0.00021372,2]
[348747650,1736768840675,-342.89348627,0.00021417,2]
[348747651,1736768840696,-300.0,0.000215,9]
[348747652,1736768840717,-395.016,0.00021503,2]
[348747653,1736768840740,-342.89348627,0.00021521,2]
[348747654,1736768840763,-342.89348627,0.00021624,2]
[348747655,1736768840788,-500.0,0.00021641,3]
[348747656,1736768840814,-873.13,0.00021643,3]
[348747657,1736768840838,-500.0,0.00021643,3]
[348747658,1736768840860,-3340.5,0.00021643,3]
[348747659,1736768840884,-500.0,0.00021643,3]
[348747660,1736768840907,-500.0,0.00021643,3]
[348747661,1736768840930,-1407.68,0.00021643,2]
[348747662,1736768840951,-342.89348627,0.00021728,2]
[348747663,1736768840972,-342.89348627,0.00021831,2]
[348747664,1736768840996,-500.0,0.00021915,3]
[348747665,1736768841018,-873.13,0.00021917,3]
[348747666,1736768841042,-500.0,0.00021917,3]
[348747667,1736768841064,-3340.5,0.00021917,3]
[348747668,1736768841087,-500.0,0.00021917,3]
[348747669,1736768841110,-500.0,0.00021917,3]
[348747670,1736768841132,-1407.68,0.00021917,2]
[348747671,1736768841153,-342.89348627,0.00021934,2]
[348747672,1736768841176,-342.89348627,0.00022038,2]
[348747673,1736768841198,-342.89348627,0.00022141,2]
[348747674,1736768841221,-500.0,0.00022189,3]
[348747675,1736768841244,-873.13,0.00022191,3]
[348747676,1736768841268,-500.0,0.00022191,3]
[348747677,1736768841304,-3340.5,0.00022191,3]
[348747678,1736768841327,-500.0,0.00022191,3]
[348747679,1736768841353,-500.0,0.00022191,3]
[348747680,1736768841377,-1407.68,0.00022191,2]
[348747681,1736768841399,-470.4064272,0.00022198,2]
[348747682,1736768841423,-342.89348627,0.00022245,2]
[348747683,1736768841446,-342.89348627,0.00022348,2]
[348747684,1736768841469,-10866.89586471,0.00022376,2]
[348747685,1736768841491,-167.1894868,0.000224,2]
[348747686,1736768841514,-515.87,0.0002245,2]
[348747687,1736768841537,-342.89348627,0.00022452,2]
[348747688,1736768841561,-500.0,0.00022463,3]
[348747689,1736768841585,-873.13,0.00022465,3]
[348747690,1736768841609,-500.0,0.00022465,3]
[348747691,1736768841632,-3340.5,0.00022465,3]
[348747692,1736768841655,-500.0,0.00022465,3]
[348747693,1736768841679,-500.0,0.00022465,3]
[348747694,1736768841702,-1407.68,0.00022465,2]
[348747695,1736768841724,-5102.62778115,0.0002248,5]
[348747696,1736768854105,-500.0,0.00019178,2]
[348747697,1736768854130,-1531.07,0.00019178,2]
[348747698,1736768854153,-413.21344616,0.00019452,3]
[348747699,1736768854177,-1531.07,0.00019452,3]
[348747700,1736768854201,-663.71,0.00019604,3]
[348747701,1736768854225,-663.71,0.00019878,3]